bitfinex/quotes_SOLUSD_20250706
["timestamp","ask_amount","ask_price","bid_price","bid_amount"]
[1751813803703,39.88128573,151.81,151.8,0.03]
[1751813815014,49.84398054,151.81,151.8,0.03]
[1751813815693,33.29410439,151.81,151.8,0.03]
[1751813815894,7.29410439,151.81,151.8,0.03]
[1751813816102,7.29410439,151.82,151.8,0.03]
[1751813818224,7.29410439,151.81,151.8,0.03]
[1751813821414,13.88128573,151.81,151.8,0.03]
[1751813822005,39.88128573,151.81,151.8,0.03]
[1751813822206,106.31234367,151.8,151.72,1.6637]
[1751813822402,7.29410439,151.74,151.72,8.25450534]
[1751813822909,7.29410439,151.74,151.72,1.6637]
[1751813823514,147.51234367,151.8,151.72,1.6637]
[1751813823515,7.29410439,151.73,151.72,1.6637]
[1751813827024,7.29410439,151.73,151.72,1.6937]
[1751813829922,7.29410439,151.73,151.72,0.03]
[1751813835534,6.59035578,151.74,151.72,0.03]
[1751813835708,7.29410439,151.73,151.72,0.03]
[1751813839604,13.88475884,151.73,151.72,0.03]
[1751813846935,21.02475884,151.73,151.72,0.03]
[1751813854944,13.88475884,151.73,151.72,0.03]
[1751813855320,26.0,151.74,151.72,0.03]
[1751813855520,7.14,151.75,151.72,0.03]
[1751813855722,7.14,151.75,151.73,7.29410439]
[1751813856040,13.88261426,151.78,151.73,7.29410439]
[1751813856545,7.29410439,151.79,151.74,7.29410439]
[1751813856944,7.29410439,151.78,151.74,7.29410439]
[1751813857546,7.29410439,151.78,151.74,13.88423988]
[1751813857736,0.06,151.8,151.75,7.29410439]
[1751813857937,0.06,151.8,151.76,15.05760439]
[1751813858137,0.06,151.8,151.77,7.29410439]
[1751813859422,0.06,151.8,151.77,13.88284744]
[1751813860649,7.35410439,151.8,151.76,14.35272764]
[1751813860847,7.29410439,151.79,151.76,14.35272764]
[1751813861029,7.35410439,151.8,151.76,21.64683203]
[1751813862356,0.06,151.8,151.78,7.29410439]
[1751813863647,0.06,151.8,151.78,13.8824802]
[1751813864953,0.06,151.8,151.77,13.88291041]
[1751813866251,0.06,151.8,151.77,6.58880602]
[1751813866453,0.06,151.8,151.77,13.88291041]
[1751813870161,0.06,151.8,151.77,6.58880602]
[1751813870355,0.06,151.8,151.77,13.88291041]
[1751813872164,7.35410439,151.8,151.77,6.58880602]
[1751813873365,0.06,151.8,151.77,6.58880602]
[1751813873554,7.35410439,151.8,151.77,6.58880602]
[1751813875065,0.06,151.8,151.78,7.29410439]
[1751813875965,0.06,151.8,151.79,7.29410439]
[1751813877465,0.06,151.8,151.79,13.88215366]
[1751813878164,0.06,151.8,151.79,32.53180252]
[1751813882969,84.9,151.87,151.8,18.64964886]
[1751813883155,7.29410439,151.86,151.82,7.29410439]
[1751813883468,7.2,151.87,151.82,7.29410439]
[1751813883653,7.29410439,151.86,151.83,6.58631364]
[1751813884080,7.29410439,151.84,151.81,1.6252]
[1751813884783,7.29410439,151.84,151.77,1.6252]
[1751813884784,7.29410439,151.82,151.77,1.6252]
[1751813884950,7.29410439,151.78,151.73,1.6252]
[1751813885149,7.29410439,151.76,151.74,6.58981111]
[1751813885683,84.28660159,151.83,151.75,7.29410439]
[1751813885858,7.29410439,151.8,151.75,7.29410439]
[1751813886977,77.7,151.83,151.76,6.5893516]
[1751813887276,77.7,151.83,151.77,7.29410439]
[1751813887277,7.29410439,151.82,151.77,7.29410439]
[1751813887481,7.29410439,151.81,151.77,7.29410439]
[1751813887655,7.29410439,151.8,151.76,30.356835]
[1751813890456,7.29410439,151.81,151.76,30.356835]
[1751813891287,7.29410439,151.82,151.78,7.29410439]
[1751813891477,7.29410439,151.82,151.77,7.29410439]
[1751813891677,7.29410439,151.81,151.77,7.29410439]
[1751813892475,7.29410439,151.82,151.77,7.29410439]
[1751813893470,7.29410439,151.82,151.78,6.58848333]
[1751813895954,0.06,151.81,151.78,6.58848333]
[1751813896367,0.06,151.81,151.8,7.29410439]
[1751813896992,0.06,151.81,151.8,25.94375325]
[1751813897360,0.06,151.87,151.81,18.64964886]
[1751813897673,0.06,151.87,151.83,7.29410439]
[1751813898358,0.06,151.87,151.84,13.87998426]
[1751813900990,0.06,151.87,151.86,7.29410439]
[1751813901888,0.06,151.87,151.85,7.29410439]
[1751813903387,7.35410439,151.87,151.83,6.58631364]
[1751813903588,7.29410439,151.85,151.83,6.58631364]
[1751813903898,0.06,151.87,151.8,26.0]
[1751813903899,7.29410439,151.84,151.8,6.58761528]
[1751813904085,7.29410439,151.82,151.8,6.58761528]
[1751813905187,7.29410439,151.81,151.8,6.58761528]
[1751813905580,7.29410439,151.82,151.8,6.58761528]
[1751813905786,7.29410439,151.81,151.8,6.58761528]
[1751813907411,110.28518643,151.86,151.8,6.58761528]
[1751813907612,7.29410439,151.81,151.8,6.58761528]
[1751813908200,7.29410439,151.81,151.75,26.03]
[1751813908201,7.29410439,151.81,151.75,27.6552]
[1751813908399,7.29410439,151.78,151.76,6.5893516]
[1751813909099,7.29410439,151.82,151.76,23.06273061]
[1751813909310,7.29410439,151.81,151.77,7.29410439]
[1751813909890,7.29410439,151.81,151.76,23.06273061]
[1751813909891,7.29410439,151.83,151.79,7.29410439]
[1751813910414,7.29410439,151.83,151.8,6.58761528]
[1751813911802,7.29410439,151.84,151.8,6.58761528]
[1751813912194,7.29410439,151.85,151.8,13.88171967]
[1751813912382,7.29410439,151.84,151.8,13.88171967]
[1751813913301,26.0,151.86,151.8,13.88171967]
[1751813913500,7.29410439,151.84,151.8,13.88171967]
[1751813915310,26.0,151.86,151.8,13.88171967]
[1751813915509,7.29410439,151.84,151.8,13.88171967]
[1751813915709,26.0,151.86,151.8,13.88171967]
[1751813916011,7.29410439,151.84,151.8,13.88171967]
[1751813916905,26.0,151.86,151.81,7.29410439]
[1751813917103,7.29410439,151.85,151.81,7.29410439]
[1751813918000,0.06,151.84,151.82,6.58674746]
[1751813918290,0.06,151.84,151.83,7.29410439]
[1751813919288,0.06,151.84,151.83,13.88041803]
[1751813921107,0.06,151.84,151.83,6.58631364]
[1751813921314,7.35410439,151.84,151.78,8.95240439]
[1751813921607,7.29410439,151.82,151.78,8.95240439]
[1751813922135,7.29410439,151.82,151.79,6.58804927]
[1751813922490,7.35410439,151.84,151.8,7.29410439]
[1751813924294,7.35410439,151.84,151.79,23.05817246]
[1751813924507,7.35410439,151.84,151.81,6.58718134]
[1751813925116,7.29410439,151.83,151.81,6.58718134]
[1751813926590,7.29410439,151.83,151.79,13.88215366]
[1751813926790,7.29410439,151.83,151.79,6.58804927]
[1751813926991,7.29410439,151.83,151.79,13.88215366]
[1751813927207,7.35410439,151.84,151.79,13.88215366]
[1751813927411,7.35410439,151.84,151.8,7.29410439]
[1751813930012,7.35410439,151.84,151.81,6.58718134]
[1751813933004,7.29410439,151.83,151.81,6.58718134]
[1751813936921,7.29410439,151.83,151.8,6.58761528]
[1751813937706,7.29410439,151.82,151.78,8.24641828]
[1751813937910,7.29410439,151.8,151.78,0.03]
[1751813940227,77.7,151.83,151.78,7.32410439]
[1751813940408,7.29410439,151.82,151.78,7.32410439]
[1751813941225,7.29410439,151.81,151.79,6.58804927]
[1751813941405,7.29410439,151.82,151.79,6.58804927]
[1751813942436,7.29410439,151.81,151.78,6.61848333]
[1751813942623,77.7,151.83,151.78,6.61848333]
[1751813942827,7.29410439,151.82,151.78,6.61848333]
[1751813945418,7.29410439,151.79,151.78,0.03]
[1751813946109,7.29410439,151.8,151.78,0.03]
[1751813953123,7.29410439,151.81,151.78,0.03]
[1751813955029,77.7,151.83,151.78,0.03]
[1751813955238,7.29410439,151.81,151.78,0.03]
[1751813955818,7.29410439,151.8,151.78,0.03]
[1751813956248,84.28634217,151.83,151.78,0.03]
[1751813956540,7.29410439,151.8,151.78,0.03]
[1751813956741,77.7,151.83,151.78,0.03]
[1751813956946,7.29410439,151.8,151.78,0.03]
[1751813958326,77.7,151.83,151.78,0.03]
[1751813958844,7.29410439,151.8,151.78,0.03]
[1751813959047,84.99410439,151.83,151.79,7.29410439]
[1751813959228,77.7,151.83,151.79,7.29410439]
[1751813959431,84.99410439,151.83,151.79,7.29410439]
[1751813960330,7.29410439,151.83,151.79,7.29410439]
[1751813960939,7.29410439,151.83,151.8,6.58761528]
[1751813961840,0.06,151.84,151.82,7.29410439]
[1751813962022,0.06,151.84,151.83,7.29410439]
[1751813963026,0.06,151.84,151.83,13.88041803]
[1751813968050,0.06,151.84,151.82,13.88085185]
[1751813968351,0.06,151.84,151.82,6.58674746]
[1751813968544,0.06,151.84,151.82,13.88085185]
[1751813969151,0.06,151.84,151.82,6.58674746]
[1751813969356,0.06,151.84,151.82,13.88085185]
[1751813970346,0.06,151.84,151.83,13.88041803]
[1751813970653,0.06,151.84,151.83,6.58631364]
[1751813973054,0.06,151.84,151.82,6.58674746]
[1751813973256,0.06,151.84,151.82,13.88085185]
[1751813973855,7.29410439,151.83,151.81,6.58715988]
[1751813975227,0.06,151.84,151.81,6.58715988]
[1751813975538,7.29410439,151.83,151.81,6.58715988]
[1751813980650,0.06,151.84,151.78,0.03]
[1751813980651,7.29410439,151.82,151.78,0.03]
[1751813980862,7.35410439,151.84,151.79,6.58804927]
[1751813981164,21.71560246,151.84,151.78,0.03]
[1751813981376,7.29410439,151.79,151.78,6.61843766]
[1751813981546,7.29410439,151.8,151.78,6.61843766]
[1751813982865,7.29410439,151.8,151.78,0.03]
[1751813983455,7.29410439,151.79,151.78,0.03]
[1751813986752,7.29410439,151.8,151.78,0.03]
[1751813992969,7.29410439,151.79,151.78,0.03]
[1751813994889,6.58674746,151.82,151.78,0.03]
[1751813995050,7.29410439,151.79,151.78,0.03]
[1751813996951,6.5871089,151.82,151.78,0.03]
[1751813997152,7.29410439,151.79,151.78,0.03]
[1751813998780,7.29410439,151.8,151.78,0.03]
[1751814000870,77.7,151.82,151.78,7.32410439]
[1751814001073,84.99410439,151.82,151.78,7.32410439]
[1751814001271,77.7,151.82,151.78,7.32410439]
[1751814001467,84.99410439,151.82,151.78,7.32410439]
[1751814001674,84.99410439,151.82,151.78,0.03]
[1751814002753,84.99410439,151.82,151.78,7.32410439]
[1751814002958,7.35410439,151.84,151.8,7.29410439]
[1751814004372,0.06,151.84,151.8,7.29410439]
[1751814004559,7.35410439,151.84,151.81,6.58718134]
[1751814006574,7.35410439,151.84,151.8,6.58761528]
[1751814007676,7.35410439,151.84,151.83,7.29410439]
[1751814007677,0.06,151.84,151.83,7.29410439]
[1751814008170,0.06,151.84,151.83,25.94375325]
[1751814008366,0.06,151.87,151.84,18.64964886]
[1751814008675,0.06,151.87,151.86,7.29410439]
[1751814009768,0.06,151.87,151.86,13.8791169]
[1751814010977,0.06,151.87,151.85,13.87955055]
[1751814012284,0.06,151.87,151.82,1.6097]
[1751814012482,7.29410439,151.84,151.82,1.6097]
[1751814012661,7.29410439,151.84,151.82,8.19631485]
[1751814012981,7.29410439,151.85,151.82,8.19631485]
[1751814014163,7.29410439,151.84,151.82,8.19631485]
[1751814015182,0.06,151.87,151.82,8.19631485]
[1751814015389,7.29410439,151.85,151.82,8.19631485]
[1751814015582,0.06,151.87,151.82,8.19631485]
[1751814015788,7.29410439,151.85,151.82,8.19631485]
[1751814019792,0.06,151.87,151.82,8.19631485]
[1751814020095,0.06,151.87,151.86,51.94375325]
[1751814021798,0.06,151.87,151.86,58.52876576]
[1751814025497,1e-08,151.87,151.86,58.52876576]
[1751814025697,1e-08,151.87,151.86,66.78296576]
[1751814026378,1e-08,151.87,151.86,59.48886137]
[1751814026572,1e-08,151.87,151.86,66.78296576]
[1751814028297,1e-08,151.87,151.86,52.84526137]
[1751814028591,1e-08,151.87,151.86,60.13936576]
[1751814028786,1e-08,151.87,151.86,52.84526137]
[1751814028989,1e-08,151.87,151.86,60.13936576]
[1751814031307,1e-08,151.87,151.86,41.4897169]
[1751814031489,7.2941044,151.87,151.82,7.08]
[1751814031687,7.29410439,151.86,151.83,6.58631364]
[1751814032596,7.29410439,151.84,151.82,6.58661842]
[1751814034788,7.29410439,151.83,151.82,6.58661842]
[1751814034991,7.29410439,151.83,151.78,0.03]
[1751814035199,7.29410439,151.84,151.78,0.03]
[1751814035200,7.29410439,151.79,151.78,26.03]
[1751814035684,7.29410439,151.79,151.78,0.03]
[1751814036012,7.29410439,151.79,151.78,26.03]
[1751814036585,7.29410439,151.79,151.78,0.03]
[1751814037003,7.29410439,151.8,151.78,0.03]
[1751814037186,7.29410439,151.81,151.78,0.03]
[1751814038415,7.29410439,151.81,151.78,6.61848333]
[1751814039809,7.29410439,151.8,151.78,0.03]
[1751814040695,7.29410439,151.79,151.78,0.03]
[1751814042290,174.74375325,151.84,151.78,0.03]
[1751814042291,8.40317877,151.84,151.78,0.03]
[1751814042483,22.05651876,151.86,151.78,26.03]
[1751814042688,7.29410439,151.84,151.79,7.29410439]
[1751814042883,7.29410439,151.84,151.78,0.03]
[1751814043095,26.0,151.85,151.78,0.03]
[1751814043305,7.29410439,151.8,151.78,0.03]
[1751814043510,7.29410439,151.79,151.78,0.03]
[1751814043894,7.29410439,151.8,151.78,0.03]
[1751814044506,34.2399458,151.83,151.78,0.03]
[1751814044809,7.29410439,151.82,151.78,0.03]
[1751814045717,7.29410439,151.82,151.78,6.61848333]
[1751814046718,6.58595235,151.84,151.78,6.61848333]
[1751814046719,7.29410439,151.86,151.81,7.29410439]
[1751814047008,33.29410439,151.86,151.82,7.29410439]
[1751814047709,26.0,151.86,151.83,7.29410439]
[1751814048010,7.29410439,151.86,151.81,6.58705122]
[1751814048212,7.29410439,151.86,151.81,13.88115561]
[1751814048711,7.29410439,151.86,151.81,7.29410439]
[1751814049116,7.29410439,151.85,151.81,7.29410439]
[1751814049315,33.29410439,151.84,151.78,0.03]
[1751814049512,7.29410439,151.8,151.78,0.03]
[1751814050102,7.29410439,151.79,151.78,0.03]
[1751814051914,6.58687168,151.82,151.78,0.03]
[1751814052113,7.29410439,151.79,151.78,0.03]
[1751814052915,10.95710164,151.79,151.78,0.03]
[1751814053895,17.54515091,151.79,151.78,0.03]
[1751814054101,26.0,151.76,151.75,0.03]
[1751814054303,36.95710164,151.76,151.75,0.03]
[1751814055238,47.91420328,151.76,151.75,0.03]
[1751814055802,36.95710164,151.76,151.75,0.03]
[1751814055997,43.54645324,151.76,151.75,0.03]
[1751814060236,70.97693389,151.76,151.72,0.03]
[1751814060423,36.95710164,151.73,151.72,0.03]
[1751814062023,29.6067505,151.73,151.72,0.03]
[1751814062226,36.19740495,151.73,151.72,0.03]
[1751814063145,26.0,151.69,151.66,0.2]
[1751814063430,10.95710164,151.67,151.66,0.2]
[1751814065538,148.8,151.72,151.66,0.2]
[1751814065539,10.95710164,151.7,151.66,0.2]
[1751814065728,10.95710164,151.69,151.66,0.2]
[1751814066244,110.16113752,151.72,151.66,0.2]
[1751814066543,10.95710164,151.67,151.66,0.2]
[1751814068536,17.55036332,151.67,151.66,0.2]
[1751814068754,43.55036332,151.67,151.66,0.2]
[1751814068910,26.0,151.67,151.66,0.2]
[1751814069316,36.95710164,151.67,151.66,0.2]
[1751814070131,43.55036332,151.67,151.66,0.2]
[1751814072015,17.55036332,151.67,151.66,0.2]
[1751814074918,13.91062901,151.67,151.66,0.2]
[1751814075932,58.56027787,151.67,151.66,0.2]
[1751814076123,58.56027787,151.67,151.65,0.2]
[1751814076124,32.56027787,151.67,151.65,0.2]
[1751814076329,33.31736733,151.66,151.65,0.2]
[1751814076634,110.91736733,151.66,151.65,0.2]
[1751814077926,117.51106375,151.66,151.65,0.2]
[1751814079342,136.16071261,151.66,151.65,0.2]
[1751814080843,128.84334528,151.66,151.65,0.2]
[1751814081051,110.91736733,151.66,151.65,0.2]
[1751814081341,117.51106375,151.66,151.65,0.2]
[1751814081540,39.91106375,151.66,151.65,0.2]
[1751814081744,33.31736733,151.66,151.65,0.2]
[1751814081937,39.91106375,151.66,151.65,0.2]
[1751814082746,26.0,151.66,151.65,0.2]
[1751814082928,33.31736733,151.66,151.65,0.2]
[1751814083331,39.91106375,151.66,151.65,0.2]
[1751814085041,33.31736733,151.66,151.65,0.2]
[1751814086335,39.91106375,151.66,151.65,0.2]
[1751814091762,92.64071261,151.66,151.65,0.2]
[1751814092832,92.64071261,151.66,151.64,0.2]
[1751814093037,92.64071261,151.66,151.62,0.2]
[1751814093038,26.0,151.63,151.62,0.2]
[1751814093268,33.31736733,151.63,151.62,0.2]
[1751814094348,39.91236831,151.63,151.62,0.2]
[1751814094863,58.56201717,151.63,151.62,0.2]
[1751814096057,7.31736733,151.63,151.62,0.2]
[1751814096939,33.31736733,151.63,151.62,0.2]
[1751814097247,7.31736733,151.63,151.62,0.2]
[1751814097444,9.15084815,151.68,151.62,6.79541902]
[1751814097648,7.31736733,151.65,151.62,8.38321902]
[1751814102860,77.6,151.66,151.62,8.38321902]
[1751814103068,7.31736733,151.65,151.62,8.38321902]
[1751814105364,77.6,151.66,151.62,8.38321902]
[1751814105864,7.31736733,151.65,151.62,8.38321902]
[1751814106753,77.6,151.66,151.63,7.31736733]
[1751814107062,18.75626453,151.71,151.65,7.31736733]
[1751814107063,77.6,151.68,151.65,7.31736733]
[1751814107369,77.6,151.68,151.66,7.31736733]
[1751814107554,92.05736733,151.7,151.66,7.31736733]
[1751814107868,77.6,151.7,151.66,7.31736733]
[1751814108170,77.6,151.7,151.67,7.31736733]
[1751814108480,84.91736733,151.7,151.66,7.31736733]
[1751814108842,84.91736733,151.7,151.67,6.59326168]
[1751814114775,7.31736733,151.68,151.63,1.5535]
[1751814114950,7.31736733,151.65,151.63,8.14834776]
[1751814115145,7.31736733,151.65,151.63,1.5535]
[1751814115473,7.31736733,151.67,151.63,1.5535]
[1751814116057,7.31736733,151.67,151.63,15.46582554]
[1751814117599,77.6,151.69,151.65,7.31736733]
[1751814117798,84.91736733,151.69,151.65,7.31736733]
[1751814117959,77.6,151.69,151.66,7.31736733]
[1751814119392,7.31736733,151.71,151.66,7.31736733]
[1751814119554,103.6,151.72,151.68,13.91019433]
[1751814119754,110.91736733,151.72,151.69,1.603]
[1751814120878,7.31736733,151.71,151.69,1.603]
[1751814121586,7.31736733,151.7,151.65,1.603]
[1751814121797,7.31736733,151.68,151.65,1.603]
[1751814122083,7.31736733,151.66,151.62,0.2]
[1751814122252,7.31736733,151.63,151.62,0.2]
[1751814122598,7.31736733,151.64,151.62,0.2]
[1751814125195,7.31736733,151.63,151.62,0.2]
[1751814125396,77.6,151.66,151.62,0.2]
[1751814125595,7.31736733,151.64,151.62,0.2]
[1751814126295,7.31736733,151.64,151.62,6.79540679]
[1751814128399,77.6,151.66,151.62,6.79540679]
[1751814128692,77.6,151.66,151.63,7.31736733]
[1751814128880,77.6,151.66,151.64,7.31736733]
[1751814129080,77.6,151.66,151.65,7.31736733]
[1751814129882,77.6,151.66,151.62,32.76242298]
[1751814130124,84.91736733,151.66,151.62,14.11277412]
[1751814130299,7.31736733,151.65,151.62,6.79540679]
[1751814131213,7.31736733,151.63,151.62,0.2]
[1751814132821,10.9748239,151.63,151.62,0.2]
[1751814133597,6.59413122,151.65,151.62,0.2]
[1751814133923,10.9748239,151.64,151.62,0.2]
[1751814135320,10.9748239,151.63,151.62,0.2]
[1751814143930,77.6,151.64,151.62,0.2]
[1751814144130,10.9748239,151.63,151.62,0.2]
[1751814144534,77.6,151.64,151.62,6.79541654]
[1751814149234,88.5748239,151.64,151.62,0.2]
[1751814149425,10.9748239,151.63,151.62,0.2]
[1751814154320,77.6,151.63,151.62,0.2]
[1751814154528,88.5748239,151.63,151.62,0.2]
[1751814154825,91.5134965,151.63,151.62,0.2]
[1751814157120,84.91849552,151.63,151.62,0.2]
[1751814158918,77.6,151.63,151.62,0.2]
[1751814159135,84.91849552,151.63,151.62,0.2]
[1751814161042,77.6,151.63,151.62,0.2]
[1751814161231,77.6,151.63,151.62,14.11393147]
[1751814161849,7.31849552,151.7,151.63,18.64964886]
[1751814162056,7.31849552,151.7,151.65,7.31849552]
[1751814162226,33.31849552,151.69,151.63,18.64964886]
[1751814162530,7.31849552,151.66,151.62,14.11393147]
[1751814162730,26.0,151.69,151.62,6.79543595]
[1751814163047,7.31849552,151.67,151.62,14.11393147]
[1751814163247,7.31849552,151.66,151.62,14.11393147]
[1751814164136,7.31849552,151.67,151.62,14.11393147]
[1751814164529,7.31849552,151.66,151.62,6.79543595]
[1751814164731,7.31849552,151.66,151.62,14.11393147]
[1751814165747,7.31849552,151.67,151.62,14.11393147]
[1751814165938,26.0,151.69,151.65,7.31849552]
[1751814166339,33.31849552,151.69,151.65,7.31849552]
[1751814166643,33.31849552,151.69,151.62,6.79543595]
[1751814166644,7.31849552,151.68,151.64,7.31849552]
[1751814167560,0.06,151.64,151.63,32.5628645]
[1751814170956,0.06,151.64,151.63,7.31849552]
[1751814171261,0.06,151.64,151.62,6.7952944]
[1751814171444,0.06,151.64,151.62,0.2]
[1751814172566,7.37849552,151.64,151.62,0.2]
[1751814172733,7.31849552,151.63,151.62,0.2]
[1751814180360,7.37849552,151.64,151.62,0.2]
[1751814183567,0.06,151.64,151.62,0.2]
[1751814183744,7.31849552,151.63,151.62,0.2]
[1751814184451,0.06,151.64,151.62,0.2]
[1751814184654,7.31849552,151.63,151.62,0.2]
[1751814186266,7.37849552,151.64,151.62,0.2]
[1751814188379,0.06,151.64,151.62,6.79533467]
[1751814190978,0.06,151.64,151.62,14.11383019]
[1751814191349,0.06,151.64,151.62,0.2]
[1751814191568,7.37849552,151.64,151.62,0.2]
[1751814192558,7.31849552,151.63,151.62,0.2]
[1751814193769,0.06,151.64,151.62,0.2]
[1751814193973,7.31849552,151.63,151.62,0.2]
[1751814195074,7.37849552,151.64,151.62,0.2]
[1751814195255,0.06,151.64,151.62,6.79538073]
[1751814196979,0.06,151.64,151.62,0.2]
[1751814199083,0.06,151.64,151.62,6.79532118]
[1751814204883,0.06,151.64,151.63,7.31849552]
[1751814205772,0.06,151.64,151.63,32.56314536]
[1751814213783,1e-08,151.64,151.63,32.56314536]
[1751814214778,77.6,151.73,151.68,18.64964886]
[1751814214983,77.6,151.73,151.69,7.31849552]
[1751814215371,7.31849552,151.75,151.71,7.31849552]
[1751814215572,77.66,151.76,151.72,6.59108884]
[1751814215874,7.31849552,151.75,151.72,6.59108884]
[1751814216396,7.37771735,151.74,151.69,18.64964886]
[1751814216570,7.37771735,151.74,151.66,6.88366964]
[1751814216571,7.31849552,151.7,151.66,7.31849552]
[1751814216777,30.73327341,151.67,151.64,7.31849552]
[1751814216971,30.73327341,151.67,151.62,7.28]
[1751814216972,30.73327341,151.65,151.62,7.28]
[1751814217170,7.37771735,151.66,151.62,7.28]
[1751814217171,7.37771735,151.64,151.62,14.59849552]
[1751814217394,14.69621287,151.63,151.62,0.18]
[1751814217595,7.37771735,151.63,151.62,6.77543595]
[1751814218895,7.37771735,151.63,151.62,14.09393147]
[1751814219909,7.37771735,151.63,151.62,6.77543595]
[1751814220489,19.66969214,151.63,151.62,6.77543595]
[1751814221474,7.37771735,151.63,151.62,6.77543595]
[1751814222994,7.37771735,151.63,151.62,0.18]
[1751814223305,7.37771735,151.63,151.62,6.77543595]
[1751814225396,19.53771735,151.63,151.62,6.77543595]
[1751814226706,19.53771735,151.63,151.6,7.31849552]
[1751814226873,7.37771735,151.62,151.6,7.31849552]
[1751814227080,7.37771735,151.61,151.6,7.31849552]
[1751814227594,7.37771735,151.61,151.6,13.91480158]
[1751814230892,7.37771735,151.61,151.6,32.56445044]
[1751814233108,12.16,151.63,151.6,75.05521561]
[1751814233297,12.16,151.63,151.62,51.96814438]
[1751814234402,12.22,151.63,151.62,51.96814438]
[1751814234611,12.22,151.63,151.62,51.24508481]
[1751814234907,12.22,151.63,151.62,58.56358033]
[1751814235089,12.22,151.63,151.62,58.0996377]
[1751814239591,12.22,151.63,151.62,6.59543595]
[1751814241212,19.07455289,151.63,151.59,0.03]
[1751814241388,6.85455289,151.62,151.6,6.59615142]
[1751814241588,6.85455289,151.62,151.59,6.6266085]
[1751814242302,6.85455289,151.61,151.59,6.62665946]
[1751814243106,6.85455289,151.61,151.59,0.03]
[1751814245101,7.37430786,151.6,151.59,0.03]
[1751814245906,7.37430786,151.61,151.59,6.88455289]
[1751814246112,12.22,151.63,151.6,6.85455289]
[1751814246815,12.22,151.63,151.59,6.88455289]
[1751814248211,12.22,151.63,151.6,6.59630606]
[1751814250717,19.07455289,151.63,151.59,0.03]
[1751814250909,6.85455289,151.62,151.59,0.03]
[1751814251297,12.22,151.63,151.59,0.03]
[1751814251298,6.85455289,151.6,151.59,0.03]
[1751814260734,21.46105895,151.6,151.59,0.03]
[1751814266029,14.86475289,151.6,151.59,0.03]
[1751814266213,6.85455289,151.6,151.59,0.03]
[1751814268336,13.45085895,151.6,151.59,0.03]
[1751814271630,6.85455289,151.6,151.59,0.03]
[1751814280846,13.45085895,151.6,151.59,0.03]
[1751814281542,6.85455289,151.6,151.59,0.03]
[1751814282961,13.45085895,151.6,151.59,0.03]
[1751814283662,6.85455289,151.6,151.59,0.03]
[1751814286238,32.85455289,151.6,151.59,0.03]
[1751814286736,0.06,151.62,151.59,0.03]
[1751814287065,6.85455289,151.6,151.59,0.03]
[1751814287246,32.85455289,151.6,151.59,0.03]
[1751814290262,39.45085895,151.6,151.59,0.03]
[1751814290961,36.98951738,151.6,151.59,0.03]
[1751814291558,30.39321132,151.6,151.59,0.03]
[1751814292643,26.0,151.6,151.59,0.03]
[1751814292851,30.39321132,151.6,151.59,0.03]
[1751814296046,30.60182793,151.6,151.59,0.03]
[1751814296743,37.19813399,151.6,151.59,0.03]
[1751814296937,55.84778285,151.6,151.59,0.03]
[1751814298645,0.06,151.62,151.59,4.63182793]
[1751814298860,0.06,151.62,151.59,0.03]
[1751814300472,0.06,151.62,151.59,6.6267412]
[1751814300773,7.24541105,151.62,151.59,6.6267412]
[1751814301352,7.24541105,151.62,151.59,0.03]
[1751814301353,7.18541105,151.6,151.59,0.03]
[1751814302071,25.51545259,151.6,151.59,0.03]
[1751814302550,32.11175865,151.6,151.59,0.03]
[1751814303555,6.86580373,151.6,151.59,0.03]
[1751814303763,51.51545259,151.6,151.59,0.03]
[1751814303947,25.51545259,151.6,151.59,0.03]
[1751814304568,32.11175865,151.6,151.59,0.03]
[1751814305369,26.0,151.57,151.56,0.06]
[1751814305555,32.86580373,151.57,151.56,0.06]
[1751814310287,26.0,151.57,151.56,0.06]
[1751814310967,32.86580373,151.57,151.56,0.06]